{"text_format":"1","workbook":"xlsx","n_sheets":2,"sheets":["Ежедневный отчет","График показателей"],"not_rendered":{"charts":0,"images":0,"macros":1,"external_links":0,"defined_names":0,"comments":0,"pivot_tables":0},"unopened":[],"bounds":{"document_bytes":16777216,"sheet_cells":100000,"rows_first":2000,"rows_last":500,"rows_between":2000,"halvings":0,"cell_chars":16384,"cell_head_chars":4096},"cells_cut":0,"cells_raw":0,"read":"whole","date_system":"1900"}

{"sheet":"Ежедневный отчет","index":0,"n_rows":7,"n_cols":14,"rows_kept":7,"cut":false,"hidden":false,"merged":[]}
[null,"2014-08-19","2014-08-20","2014-08-21","2014-08-22","2014-08-23","2014-08-24","2014-08-25","2014-08-26","2014-08-27","2014-08-28","2014-08-29","2014-08-30","2014-08-31"]
["Показатель1",{"$f":"IF($1:$1='График показателей'!B1,HLOOKUP('Ежедневный отчет'!$B:$N,'График показателей'!B:B,2,0),\"\")","v":""},359,{"$f":"IF($1:$1='График показателей'!D1,HLOOKUP('Ежедневный отчет'!$B:$N,'График показателей'!D:D,2,0),\"\")","v":""},{"$f":"IF($1:$1='График показателей'!E1,HLOOKUP('Ежедневный отчет'!$B:$N,'График показателей'!E:E,2,0),\"\")","v":""},{"$f":"IF($1:$1='График показателей'!F1,HLOOKUP('Ежедневный отчет'!$B:$N,'График показателей'!F:F,2,0),\"\")","v":""},{"$f":"IF($1:$1='График показателей'!G1,HLOOKUP('Ежедневный отчет'!$B:$N,'График показателей'!G:G,2,0),\"\")","v":""},{"$f":"IF($1:$1='График показателей'!H1,HLOOKUP('Ежедневный отчет'!$B:$N,'График показателей'!H:H,2,0),\"\")","v":""},{"$f":"IF($1:$1='График показателей'!I1,HLOOKUP('Ежедневный отчет'!$B:$N,'График показателей'!I:I,2,0),\"\")","v":""},{"$f":"IF($1:$1='График показателей'!J1,HLOOKUP('Ежедневный отчет'!$B:$N,'График показателей'!J:J,2,0),\"\")","v":""},{"$f":"IF($1:$1='График показателей'!K1,HLOOKUP('Ежедневный отчет'!$B:$N,'График показателей'!K:K,2,0),\"\")","v":""},{"$f":"IF($1:$1='График показателей'!L1,HLOOKUP('Ежедневный отчет'!$B:$N,'График показателей'!L:L,2,0),\"\")","v":""},{"$f":"IF($1:$1='График показателей'!M1,HLOOKUP('Ежедневный отчет'!$B:$N,'График показателей'!M:M,2,0),\"\")","v":""},{"$f":"IF($1:$1='График показателей'!N1,HLOOKUP('Ежедневный отчет'!$B:$N,'График показателей'!N:N,2,0),\"\")","v":""}]
["Показатель2",{"$f":"IF($1:$1='График показателей'!B2,HLOOKUP('Ежедневный отчет'!$B:$N,'График показателей'!B:B,2,0),\"\")","v":""},360,{"$f":"IF($1:$1='График показателей'!D2,HLOOKUP('Ежедневный отчет'!$B:$N,'График показателей'!D:D,2,0),\"\")","v":""},{"$f":"IF($1:$1='График показателей'!E2,HLOOKUP('Ежедневный отчет'!$B:$N,'График показателей'!E:E,2,0),\"\")","v":""},{"$f":"IF($1:$1='График показателей'!F2,HLOOKUP('Ежедневный отчет'!$B:$N,'График показателей'!F:F,2,0),\"\")","v":""},{"$f":"IF($1:$1='График показателей'!G2,HLOOKUP('Ежедневный отчет'!$B:$N,'График показателей'!G:G,2,0),\"\")","v":""},{"$f":"IF($1:$1='График показателей'!H2,HLOOKUP('Ежедневный отчет'!$B:$N,'График показателей'!H:H,2,0),\"\")","v":""},{"$f":"IF($1:$1='График показателей'!I2,HLOOKUP('Ежедневный отчет'!$B:$N,'График показателей'!I:I,2,0),\"\")","v":""},{"$f":"IF($1:$1='График показателей'!J2,HLOOKUP('Ежедневный отчет'!$B:$N,'График показателей'!J:J,2,0),\"\")","v":""},{"$f":"IF($1:$1='График показателей'!K2,HLOOKUP('Ежедневный отчет'!$B:$N,'График показателей'!K:K,2,0),\"\")","v":""},{"$f":"IF($1:$1='График показателей'!L2,HLOOKUP('Ежедневный отчет'!$B:$N,'График показателей'!L:L,2,0),\"\")","v":""},{"$f":"IF($1:$1='График показателей'!M2,HLOOKUP('Ежедневный отчет'!$B:$N,'График показателей'!M:M,2,0),\"\")","v":""},{"$f":"IF($1:$1='График показателей'!N2,HLOOKUP('Ежедневный отчет'!$B:$N,'График показателей'!N:N,2,0),\"\")","v":""}]
["Показатель3",{"$f":"IF($1:$1='График показателей'!B3,HLOOKUP('Ежедневный отчет'!$B:$N,'График показателей'!B:B,2,0),\"\")","v":""},361,{"$f":"IF($1:$1='График показателей'!D3,HLOOKUP('Ежедневный отчет'!$B:$N,'График показателей'!D:D,2,0),\"\")","v":""},{"$f":"IF($1:$1='График показателей'!E3,HLOOKUP('Ежедневный отчет'!$B:$N,'График показателей'!E:E,2,0),\"\")","v":""},{"$f":"IF($1:$1='График показателей'!F3,HLOOKUP('Ежедневный отчет'!$B:$N,'График показателей'!F:F,2,0),\"\")","v":""},{"$f":"IF($1:$1='График показателей'!G3,HLOOKUP('Ежедневный отчет'!$B:$N,'График показателей'!G:G,2,0),\"\")","v":""},{"$f":"IF($1:$1='График показателей'!H3,HLOOKUP('Ежедневный отчет'!$B:$N,'График показателей'!H:H,2,0),\"\")","v":""},{"$f":"IF($1:$1='График показателей'!I3,HLOOKUP('Ежедневный отчет'!$B:$N,'График показателей'!I:I,2,0),\"\")","v":""},{"$f":"IF($1:$1='График показателей'!J3,HLOOKUP('Ежедневный отчет'!$B:$N,'График показателей'!J:J,2,0),\"\")","v":""},{"$f":"IF($1:$1='График показателей'!K3,HLOOKUP('Ежедневный отчет'!$B:$N,'График показателей'!K:K,2,0),\"\")","v":""},{"$f":"IF($1:$1='График показателей'!L3,HLOOKUP('Ежедневный отчет'!$B:$N,'График показателей'!L:L,2,0),\"\")","v":""},{"$f":"IF($1:$1='График показателей'!M3,HLOOKUP('Ежедневный отчет'!$B:$N,'График показателей'!M:M,2,0),\"\")","v":""},{"$f":"IF($1:$1='График показателей'!N3,HLOOKUP('Ежедневный отчет'!$B:$N,'График показателей'!N:N,2,0),\"\")","v":""}]
["Показатель4",{"$f":"IF($1:$1='График показателей'!B4,HLOOKUP('Ежедневный отчет'!$B:$N,'График показателей'!B:B,2,0),\"\")","v":""},362,{"$f":"IF($1:$1='График показателей'!D4,HLOOKUP('Ежедневный отчет'!$B:$N,'График показателей'!D:D,2,0),\"\")","v":""},{"$f":"IF($1:$1='График показателей'!E4,HLOOKUP('Ежедневный отчет'!$B:$N,'График показателей'!E:E,2,0),\"\")","v":""},{"$f":"IF($1:$1='График показателей'!F4,HLOOKUP('Ежедневный отчет'!$B:$N,'График показателей'!F:F,2,0),\"\")","v":""},{"$f":"IF($1:$1='График показателей'!G4,HLOOKUP('Ежедневный отчет'!$B:$N,'График показателей'!G:G,2,0),\"\")","v":""},{"$f":"IF($1:$1='График показателей'!H4,HLOOKUP('Ежедневный отчет'!$B:$N,'График показателей'!H:H,2,0),\"\")","v":""},{"$f":"IF($1:$1='График показателей'!I4,HLOOKUP('Ежедневный отчет'!$B:$N,'График показателей'!I:I,2,0),\"\")","v":""},{"$f":"IF($1:$1='График показателей'!J4,HLOOKUP('Ежедневный отчет'!$B:$N,'График показателей'!J:J,2,0),\"\")","v":""},{"$f":"IF($1:$1='График показателей'!K4,HLOOKUP('Ежедневный отчет'!$B:$N,'График показателей'!K:K,2,0),\"\")","v":""},{"$f":"IF($1:$1='График показателей'!L4,HLOOKUP('Ежедневный отчет'!$B:$N,'График показателей'!L:L,2,0),\"\")","v":""},{"$f":"IF($1:$1='График показателей'!M4,HLOOKUP('Ежедневный отчет'!$B:$N,'График показателей'!M:M,2,0),\"\")","v":""},{"$f":"IF($1:$1='График показателей'!N4,HLOOKUP('Ежедневный отчет'!$B:$N,'График показателей'!N:N,2,0),\"\")","v":""}]
["Показатель5",{"$f":"IF($1:$1='График показателей'!B5,HLOOKUP('Ежедневный отчет'!$B:$N,'График показателей'!B:B,2,0),\"\")","v":""},363,{"$f":"IF($1:$1='График показателей'!D5,HLOOKUP('Ежедневный отчет'!$B:$N,'График показателей'!D:D,2,0),\"\")","v":""},{"$f":"IF($1:$1='График показателей'!E5,HLOOKUP('Ежедневный отчет'!$B:$N,'График показателей'!E:E,2,0),\"\")","v":""},{"$f":"IF($1:$1='График показателей'!F5,HLOOKUP('Ежедневный отчет'!$B:$N,'График показателей'!F:F,2,0),\"\")","v":""},{"$f":"IF($1:$1='График показателей'!G5,HLOOKUP('Ежедневный отчет'!$B:$N,'График показателей'!G:G,2,0),\"\")","v":""},{"$f":"IF($1:$1='График показателей'!H5,HLOOKUP('Ежедневный отчет'!$B:$N,'График показателей'!H:H,2,0),\"\")","v":""},{"$f":"IF($1:$1='График показателей'!I5,HLOOKUP('Ежедневный отчет'!$B:$N,'График показателей'!I:I,2,0),\"\")","v":""},{"$f":"IF($1:$1='График показателей'!J5,HLOOKUP('Ежедневный отчет'!$B:$N,'График показателей'!J:J,2,0),\"\")","v":""},{"$f":"IF($1:$1='График показателей'!K5,HLOOKUP('Ежедневный отчет'!$B:$N,'График показателей'!K:K,2,0),\"\")","v":""},{"$f":"IF($1:$1='График показателей'!L5,HLOOKUP('Ежедневный отчет'!$B:$N,'График показателей'!L:L,2,0),\"\")","v":""},{"$f":"IF($1:$1='График показателей'!M5,HLOOKUP('Ежедневный отчет'!$B:$N,'График показателей'!M:M,2,0),\"\")","v":""},{"$f":"IF($1:$1='График показателей'!N5,HLOOKUP('Ежедневный отчет'!$B:$N,'График показателей'!N:N,2,0),\"\")","v":""}]
["Показатель6",{"$f":"IF($1:$1='График показателей'!B6,HLOOKUP('Ежедневный отчет'!$B:$N,'График показателей'!B:B,2,0),\"\")","v":""},364,{"$f":"IF($1:$1='График показателей'!D6,HLOOKUP('Ежедневный отчет'!$B:$N,'График показателей'!D:D,2,0),\"\")","v":""},{"$f":"IF($1:$1='График показателей'!E6,HLOOKUP('Ежедневный отчет'!$B:$N,'График показателей'!E:E,2,0),\"\")","v":""},{"$f":"IF($1:$1='График показателей'!F6,HLOOKUP('Ежедневный отчет'!$B:$N,'График показателей'!F:F,2,0),\"\")","v":""},{"$f":"IF($1:$1='График показателей'!G6,HLOOKUP('Ежедневный отчет'!$B:$N,'График показателей'!G:G,2,0),\"\")","v":""},{"$f":"IF($1:$1='График показателей'!H6,HLOOKUP('Ежедневный отчет'!$B:$N,'График показателей'!H:H,2,0),\"\")","v":""},{"$f":"IF($1:$1='График показателей'!I6,HLOOKUP('Ежедневный отчет'!$B:$N,'График показателей'!I:I,2,0),\"\")","v":""},{"$f":"IF($1:$1='График показателей'!J6,HLOOKUP('Ежедневный отчет'!$B:$N,'График показателей'!J:J,2,0),\"\")","v":""},{"$f":"IF($1:$1='График показателей'!K6,HLOOKUP('Ежедневный отчет'!$B:$N,'График показателей'!K:K,2,0),\"\")","v":""},{"$f":"IF($1:$1='График показателей'!L6,HLOOKUP('Ежедневный отчет'!$B:$N,'График показателей'!L:L,2,0),\"\")","v":""},{"$f":"IF($1:$1='График показателей'!M6,HLOOKUP('Ежедневный отчет'!$B:$N,'График показателей'!M:M,2,0),\"\")","v":""},{"$f":"IF($1:$1='График показателей'!N6,HLOOKUP('Ежедневный отчет'!$B:$N,'График показателей'!N:N,2,0),\"\")","v":""}]

{"sheet":"График показателей","index":1,"n_rows":7,"n_cols":2,"rows_kept":7,"cut":false,"hidden":false,"merged":[]}
[null,{"$f":"TODAY()","v":"2014-08-20"}]
["Показатель1",359]
["Показатель2",360]
["Показатель3",361]
["Показатель4",362]
["Показатель5",363]
["Показатель6",364]